lending/lending_fUSD_20260312
["ID","MTS","AMOUNT","RATE_DAILY","PERIOD"]
[408248696,1773313833015,-110683.42854635,0.00017641,2]
[408248697,1773313833026,-14121.32887676,0.00017641,2]
[408248698,1773313833037,-29938.10726188,0.00017641,2]
[408248699,1773313833048,-116617.83653765,0.00017641,2]
[408248704,1773313837988,-1000.0,0.00016986,2]
[408248705,1773313837997,-6755.0212,0.0001754,2]
[408248706,1773313838007,-3170.82125345,0.00017641,2]
[408248716,1773313839425,-3468.69846394,0.00017641,2]
[408248718,1773313840312,-6736.78620848,0.00017573,2]
[408248719,1773313840324,-1516.62285092,0.00017573,2]
[408248720,1773313840337,-4513.50802022,0.00017573,2]
[408248721,1773313840347,-1914.524021,0.00017641,2]
[408248722,1773313840359,-6146.5665987,0.00017641,2]
[408248725,1773313841677,-159353.78691844,0.00017641,2]
[408248726,1773313841692,-838232.82197788,0.00017641,2]
[408248727,1773313841702,-4863.13,0.00017641,2]
[408248728,1773313841711,-500.0,0.00017673,2]
[408248729,1773313841721,-500.0,0.00017673,2]
[408248730,1773313841730,-500.0,0.00017673,2]
[408248731,1773313841739,-308.33409821,0.00017673,2]
[408248732,1773313841748,-500.58140027,0.00017673,2]
[408248733,1773313841758,-500.0,0.00017673,2]
[408248734,1773313841768,-500.0,0.00017673,2]
[408248735,1773313841777,-500.0,0.00017673,2]
[408248736,1773313841787,-500.0,0.00017673,2]
[408248737,1773313841796,-500.0,0.00017673,2]
[408248738,1773313841805,-500.0,0.00017673,2]
[408248739,1773313841814,-500.0,0.00017673,2]
[408248740,1773313841824,-500.0,0.00017673,2]
[408248741,1773313841833,-500.50222825,0.00017673,2]
[408248742,1773313841842,-1466.38,0.000177,2]
[408248743,1773313841851,-315.0,0.00017741,2]
[408248744,1773313841860,-487.86945979,0.00017826,2]
[408248745,1773313841869,-1552.43681819,0.00017826,2]
[408248746,1773313841879,-10597.51870592,0.00017832,2]
[408248747,1773313841888,-315.0,0.00017878,2]
[408248748,1773313841897,-479.11785524,0.000179,2]
[408248749,1773313841907,-479.11785524,0.000179,2]
[408248750,1773313841916,-479.11785524,0.000179,2]
[408248751,1773313841925,-479.11785524,0.000179,2]
[408248752,1773313841935,-589.70510101,0.000179,2]
[408248753,1773313841944,-589.70510098,0.000179,2]
[408248754,1773313841954,-589.70510098,0.000179,2]
[408248755,1773313841964,-589.70510098,0.000179,2]
[408248756,1773313841975,-393.136734,0.000179,2]
[408248757,1773313841985,-393.13673399,0.000179,2]
[408248758,1773313841998,-393.13673399,0.000179,2]
[408248759,1773313842008,-393.13673399,0.000179,2]
[408248760,1773313842017,-694.30380297,0.000179,2]
[408248761,1773313842026,-6513.88547931,0.000179,2]
[408248762,1773313842035,-500.0,0.00017924,2]
[408248763,1773313842045,-500.0,0.00017924,2]
[408248764,1773313842056,-500.0,0.00017924,2]
[408248765,1773313842067,-500.0,0.00017924,2]
[408248766,1773313842077,-500.0,0.00017924,2]
[408248767,1773313842086,-500.0,0.00017925,2]
[408248768,1773313842095,-497.49770464,0.00017925,2]
[408248769,1773313842104,-500.0,0.00017925,2]
[408248770,1773313842113,-454.79969222,0.00017925,2]
[408248771,1773313842122,-500.0,0.00017925,2]
[408248772,1773313842132,-500.0,0.00017925,2]
[408248773,1773313842141,-548.09996795,0.00017925,2]
[408248774,1773313842152,-500.0,0.00017925,2]
[408248775,1773313842161,-500.0,0.00017925,2]
[408248776,1773313842171,-500.0,0.00017925,2]
[408248777,1773313842181,-500.0,0.00017925,2]
[408248778,1773313842190,-500.0,0.00017925,2]
[408248779,1773313842199,-529.61791857,0.00017925,2]
[408248780,1773313842210,-500.0,0.00017925,2]
[408248781,1773313842219,-484.25426362,0.00017925,2]
[408248782,1773313842230,-500.0,0.00017925,2]
[408248783,1773313842239,-387.90554788,0.00017925,2]
[408248784,1773313842250,-2781.01,0.0001794,2]
[408248785,1773313842261,-153.20077314,0.00017966,2]
[408248786,1773313842271,-194.42908711,0.00017973,2]
[408248787,1773313842281,-554.45449383,0.00017973,2]
[408248788,1773313842290,-500.0,0.00017974,2]
[408248789,1773313842299,-500.0,0.00017975,2]
[408248790,1773313842309,-500.0,0.00017975,2]
[408248791,1773313842318,-500.0,0.00017975,2]
[408248792,1773313842328,-588.34799988,0.00017975,2]
[408248793,1773313842337,-500.0,0.00017975,2]
[408248794,1773313842347,-500.0,0.00017975,2]
[408248795,1773313842357,-500.0,0.00017975,2]
[408248796,1773313842366,-500.0,0.00017975,2]
[408248797,1773313842375,-521.6043228,0.00017975,2]
[408248798,1773313842384,-500.0,0.00017975,2]
[408248799,1773313842395,-500.0,0.00017975,2]
[408248800,1773313842405,-500.0,0.00017975,2]
[408248801,1773313842415,-500.0,0.00017975,2]
[408248802,1773313842425,-500.0,0.00017975,2]
[408248803,1773313842434,-500.0,0.00017975,2]
[408248804,1773313842443,-500.0,0.00017975,2]
[408248805,1773313842453,-500.0,0.00017975,2]
[408248806,1773313842462,-500.0,0.00017975,2]
[408248807,1773313842471,-509.55308461,0.00017975,2]
[408248808,1773313842481,-500.0,0.00017975,2]
[408248809,1773313842490,-500.0,0.00017975,2]
[408248810,1773313842500,-586.04621402,0.00017975,2]
[408248811,1773313842509,-500.0,0.00017975,2]
[408248812,1773313842518,-527.18458678,0.00017975,2]
[408248813,1773313842528,-500.0,0.00017975,2]
[408248814,1773313842537,-500.0,0.00017975,2]
[408248815,1773313842548,-507.45956471,0.00017975,2]
[408248816,1773313842560,-500.0,0.00017975,2]
[408248817,1773313842569,-500.0,0.00017975,2]
[408248818,1773313842578,-500.0,0.00017975,2]
[408248819,1773313842589,-515.34564345,0.00017975,2]
[408248820,1773313842598,-500.0,0.00017975,2]
[408248821,1773313842607,-500.0,0.00017975,2]
[408248822,1773313842617,-500.0,0.00017975,2]
[408248823,1773313842629,-374.26461894,0.00017975,2]
[408248824,1773313842638,-1189904.668,0.00017976,2]
[408248825,1773313842647,-6459.0,0.00018,2]
[408248826,1773313842657,-387.58,0.00018035,2]
[408248827,1773313842667,-444.0737561,0.00018038,2]
[408248828,1773313842677,-1109.69766525,0.0001806,2]
[408248829,1773313842687,-4824.5931161,0.00018061,2]
[408248830,1773313842697,-9211.34798985,0.00018061,2]
[408248831,1773313842706,-500.0,0.00018061,2]
[408248833,1773313842715,-500.0,0.00018061,2]
[408248834,1773313842724,-500.0,0.00018061,2]
[408248835,1773313842734,-500.0,0.00018061,2]
[408248836,1773313842743,-500.0,0.00018061,2]
[408248837,1773313842753,-500.0,0.00018061,2]
[408248838,1773313842765,-500.0,0.00018061,2]
[408248839,1773313842774,-500.0,0.00018061,2]
[408248840,1773313842783,-500.0,0.00018061,2]
[408248841,1773313842793,-500.0,0.00018061,2]
[408248842,1773313842802,-500.0,0.00018061,2]
[408248843,1773313842811,-500.0,0.00018061,2]
[408248844,1773313842820,-500.0,0.00018061,2]
[408248845,1773313842829,-500.0,0.00018061,2]
[408248846,1773313842839,-500.0,0.00018061,2]
[408248847,1773313842848,-500.0,0.00018061,2]
[408248848,1773313842857,-500.0,0.00018061,2]
[408248849,1773313842866,-250.0,0.00018061,2]
[408248850,1773313842877,-500.0,0.00018061,2]
[408248851,1773313842887,-250.0,0.00018061,2]
[408248852,1773313842896,-500.0,0.00018061,2]
[408248853,1773313842905,-250.0,0.00018061,2]
[408248854,1773313842914,-500.0,0.00018061,2]
[408248855,1773313842923,-250.0,0.00018061,2]
[408248856,1773313842932,-500.0,0.00018061,2]
[408248857,1773313842941,-250.0,0.00018061,2]
[408248858,1773313842950,-500.0,0.00018061,2]
[408248859,1773313842960,-250.0,0.00018061,2]
[408248860,1773313842970,-500.0,0.00018061,2]
[408248861,1773313842981,-250.0,0.00018061,2]
[408248862,1773313842990,-500.0,0.00018061,2]
[408248863,1773313843000,-250.0,0.00018061,2]
[408248864,1773313843011,-501.47802842,0.00018061,2]
[408248865,1773313843020,-250.0,0.00018061,2]
[408248866,1773313843030,-250.0,0.00018061,2]
[408248867,1773313843041,-250.0,0.00018061,2]
[408248868,1773313843051,-174.61919141,0.00018061,2]
[408248869,1773313843060,-250.0,0.00018061,2]
[408248870,1773313843070,-200.0,0.00018061,2]
[408248871,1773313843080,-500.0,0.00018061,2]
[408248872,1773313843089,-500.0,0.00018061,2]
[408248873,1773313843100,-500.0,0.00018061,2]
[408248874,1773313843110,-500.0,0.00018061,2]
[408248875,1773313843121,-500.0,0.00018061,2]
[408248876,1773313843130,-500.0,0.00018061,2]
[408248877,1773313843140,-500.0,0.00018061,2]
[408248878,1773313843149,-500.0,0.00018061,2]
[408248879,1773313843159,-500.0,0.00018061,2]
[408248880,1773313843168,-500.0,0.00018061,2]
[408248881,1773313843178,-500.0,0.00018061,2]
[408248882,1773313843187,-500.0,0.00018061,2]
[408248883,1773313843197,-34838.3151828,0.00018076,2]
[408248884,1773313843207,-10597.51870592,0.0001809,2]
[408248885,1773313843217,-168.0,0.00018153,2]
[408248886,1773313843226,-261.47,0.00018157,2]
[408248887,1773313843237,-200.0,0.00018179,2]
[408248888,1773313843248,-282.33990359,0.00018221,2]
[408248889,1773313843257,-1003.02080856,0.00018221,2]
[408248890,1773313843266,-9875.0,0.00018347,2]
[408248891,1773313843275,-10597.51870592,0.00018349,2]
[408248892,1773313843285,-2781.01,0.00018388,2]
[408248893,1773313843295,-151.0,0.00018421,2]
[408248894,1773313843305,-181.29179344,0.00018421,2]
[408248895,1773313843316,-500.0,0.00018467,2]
[408248897,1773313843325,-2773.74987181,0.00018467,2]
[408248898,1773313843335,-2500.0,0.00018467,2]
[408248899,1773313843345,-600.0,0.00018467,2]
[408248900,1773313843355,-250.0,0.00018467,2]
[408248901,1773313843364,-300.0,0.00018467,2]
[408248902,1773313843374,-500.0,0.00018467,2]
[408248903,1773313843383,-5000.0,0.00018467,2]
[408248904,1773313843392,-2500.0,0.00018467,2]
[408248905,1773313843402,-600.0,0.00018467,2]
[408248906,1773313843411,-300.0,0.00018467,2]
[408248907,1773313843421,-2000.0,0.00018476,2]
[408248908,1773313843430,-200.0,0.00018479,2]
[408248909,1773313843440,-444.0737561,0.00018504,2]
[408248910,1773313843449,-1466.38,0.00018505,2]
[408248911,1773313843458,-341.62136298,0.00018514,2]
[408248912,1773313843469,-500.0,0.0001853,2]
[408248913,1773313843478,-1600.0,0.00018554,2]
[408248914,1773313843487,-168.0,0.00018562,2]
[408248915,1773313843497,-545.0,0.00018567,2]
[408248916,1773313843506,-10597.51870592,0.00018607,2]
[408248917,1773313843515,-174.61919141,0.00018609,2]
[408248918,1773313843525,-200.0,0.00018609,2]
[408248919,1773313843534,-1804.1133583,0.00018657,2]
[408248920,1773313843544,-500.0,0.00018685,2]
[408248921,1773313843558,-202.22668998,0.00018727,2]
[408248922,1773313843567,-1828.64394019,0.00018732,2]
[408248923,1773313843577,-250.0,0.00018732,2]
[408248924,1773313843587,-935.0,0.00018734,2]
[408248925,1773313843597,-3476.06650225,0.00018763,2]
[408248926,1773313843607,-168.0,0.00018827,2]
[408248927,1773313843616,-2781.01,0.00018837,2]
[408248928,1773313843627,-10386.615547,0.00018852,2]
[408248929,1773313843636,-3038.7825466,0.00018852,2]
[408248930,1773313843645,-151.0,0.00018866,2]
[408248931,1773313843654,-151.0,0.00018866,2]
[408248932,1773313843663,-151.0,0.00018866,2]
[408248933,1773313843673,-151.0,0.00018866,2]
[408248934,1773313843682,-151.0,0.00018866,2]
[408248935,1773313843691,-151.0,0.00018866,2]
[408248936,1773313843701,-151.0,0.00018866,2]
[408248937,1773313843711,-151.0,0.00018866,2]
[408248938,1773313843720,-151.0,0.00018866,2]
[408248939,1773313843730,-172.678265,0.00018866,2]
[408248940,1773313843739,-172.678265,0.00018866,2]
[408248941,1773313843749,-172.678265,0.00018866,2]
[408248942,1773313843758,-172.678265,0.00018866,2]
[408248943,1773313843767,-151.0,0.00018866,2]
[408248944,1773313843776,-2341.8166,0.00018878,2]
[408248945,1773313843785,-3364.0,0.00018948,2]
[408248946,1773313843795,-418.92,0.00018949,2]
[408248947,1773313843804,-444.0737561,0.00018969,2]
[408248948,1773313843813,-7596.39797554,0.00019,2]
[408248949,1773313843822,-5000.0,0.00019,2]
[408248950,1773313843831,-5000.0,0.00019,2]
[408248951,1773313843840,-350.0,0.00019,2]
[408248952,1773313843849,-3256.0,0.00019,2]
[408248953,1773313843859,-14193.25412751,0.00019,7]
[408248954,1773313843868,-151.0,0.00019,2]
[408248955,1773313843878,-2473.647,0.0001904,2]
[408248956,1773313843887,-175.475,0.0001904,2]
[408248957,1773313843896,-168.0,0.00019042,2]
[408248958,1773313843905,-32942.6924,0.000191,2]
[408248959,1773313843914,-1000.0,0.000191,2]
[408248960,1773313843923,-151.0,0.000191,2]
[408248961,1773313843932,-151.0,0.000191,2]
[408248962,1773313843941,-1722.7160525,0.00019113,2]
[408248963,1773313843950,-189.744161,0.00019178,2]
[408248964,1773313843959,-189.744161,0.00019178,2]
[408248965,1773313843969,-189.744161,0.00019178,2]
[408248966,1773313843978,-189.744161,0.00019178,2]
[408248967,1773313843987,-151.0,0.00019178,2]
[408248968,1773313843996,-2000.0,0.000192,2]
[408248969,1773313844006,-151.0,0.000192,2]
[408248970,1773313844014,-151.0,0.000192,2]
[408248971,1773313844023,-151.0,0.000192,2]
[408248972,1773313844032,-151.0,0.000192,2]
[408248973,1773313844041,-500.0,0.00019242,2]
[408248974,1773313844050,-632.0,0.00019242,2]
[408248975,1773313844059,-168.0,0.00019254,2]
[408248976,1773313844068,-168.0,0.0001927,2]
[408248977,1773313844078,-2781.01,0.00019285,2]
[408248978,1773313844087,-436.55,0.00019292,2]
[408248979,1773313844096,-4815.0,0.00019307,2]
[408248980,1773313844105,-191.85815,0.00019309,2]
[408248981,1773313844114,-191.85815,0.00019309,2]
[408248982,1773313844123,-191.85815,0.00019309,2]
[408248983,1773313844132,-191.85815,0.00019309,2]
[408248984,1773313844141,-151.0,0.00019309,2]
[408248985,1773313844150,-151.0,0.00019309,2]
[408248986,1773313844159,-1466.38,0.00019309,2]
[408248987,1773313844168,-1680.0,0.00019338,2]
[408248988,1773313844176,-278.81,0.00019341,2]
[408248989,1773313844186,-151.0,0.0001935,2]
[408248990,1773313844195,-160.0,0.00019371,2]
[408248991,1773313844205,-635.0,0.00019374,2]
[408248992,1773313844213,-168.0,0.00019401,2]
[408248993,1773313844222,-577.0,0.00019405,2]
[408248994,1773313844232,-2168.18,0.00019425,2]
[408248995,1773313844241,-500.0,0.0001943,2]
[408248996,1773313844250,-444.0737561,0.00019435,2]
[408248997,1773313844259,-1280.0,0.00019436,2]
[408248998,1773313844268,-5017.08076323,0.00019456,2]
[408248999,1773313844277,-168.0,0.00019468,2]
[408249000,1773313844286,-168.0,0.00019477,2]
[408249001,1773313844295,-166.66,0.00019501,2]
[408249002,1773313844304,-577.0,0.00019518,2]
[408249003,1773313844313,-577.0,0.0001954,2]
[408249004,1773313844322,-168.0,0.0001955,2]
[408249005,1773313844331,-577.0,0.00019564,2]
[408249006,1773313844340,-387.717,0.0001958,2]
[408249007,1773313844349,-3751.0,0.0001958,2]
[408249008,1773313844358,-384.3899086,0.00019609,2]
[408249009,1773313844368,-200.0,0.00019719,2]
[408249010,1773313844377,-150.0,0.00019726,2]
[408249011,1773313844387,-250.0,0.00019726,2]
[408249012,1773313844396,-150.0,0.00019726,2]
[408249013,1773313844406,-150.0,0.00019726,2]
[408249014,1773313844415,-150.0,0.00019726,2]
[408249015,1773313844425,-250.0,0.00019726,2]
[408249016,1773313844433,-150.0,0.00019726,2]
[408249017,1773313844443,-150.0,0.00019726,2]
[408249018,1773313844454,-150.0,0.00019726,2]
[408249019,1773313844464,-500.0,0.00019726,2]
[408249020,1773313844474,-150.0,0.00019726,2]
[408249021,1773313844484,-150.0,0.00019726,2]
[408249022,1773313844630,-150.0,0.00019726,2]
[408249023,1773313844640,-150.0,0.00019726,2]
[408249024,1773313844650,-154.6362155,0.00019726,2]
[408249025,1773313844660,-500.0,0.00019726,2]
[408249026,1773313844669,-500.0,0.00019726,2]
[408249027,1773313844679,-150.81923528,0.00019726,2]
[408249028,1773313844688,-500.0,0.00019726,2]
[408249029,1773313844698,-150.0,0.00019726,2]
[408249030,1773313844707,-150.0,0.00019726,2]
[408249031,1773313844716,-150.0,0.00019726,2]
[408249032,1773313844726,-150.0,0.00019726,2]
[408249033,1773313844735,-500.0,0.00019726,2]
[408249034,1773313844744,-500.0,0.00019726,2]
[408249035,1773313844752,-150.0,0.00019726,2]
[408249036,1773313844760,-436.0,0.00019726,2]
[408249037,1773313844769,-500.0,0.00019726,2]
[408249038,1773313844778,-150.0,0.00019726,2]
[408249039,1773313844787,-150.0,0.00019726,2]
[408249040,1773313844796,-150.0,0.00019726,2]
[408249041,1773313844806,-500.0,0.00019726,2]
[408249042,1773313844815,-150.0,0.00019726,2]
[408249043,1773313844824,-150.0,0.00019726,2]
[408249044,1773313844833,-2781.01,0.00019734,2]
[408249045,1773313844842,-168.0,0.0001978,2]
[408249046,1773313844852,-150.0,0.00019781,2]
[408249047,1773313844862,-150.0,0.00019781,2]
[408249048,1773313844871,-186.58574152,0.00019781,2]
[408249049,1773313844880,-150.0,0.00019781,2]
[408249050,1773313844890,-150.0,0.00019781,2]
[408249051,1773313844899,-150.14054899,0.00019781,2]
[408249052,1773313844909,-500.0,0.00019781,2]
[408249053,1773313844919,-150.38339506,0.00019781,2]
[408249054,1773313844928,-150.0,0.00019781,2]
[408249055,1773313844937,-150.0,0.00019781,2]
[408249056,1773313844945,-150.0,0.00019781,2]
[408249057,1773313844954,-500.0,0.00019781,2]
[408249058,1773313844964,-500.0,0.00019781,2]
[408249059,1773313844973,-500.0,0.00019781,2]
[408249060,1773313844982,-150.0,0.00019781,2]
[408249061,1773313844991,-200.0,0.00019781,2]
[408249062,1773313845001,-150.0,0.00019781,2]
[408249063,1773313845020,-501.10057062,0.00019781,2]
[408249064,1773313845030,-500.0,0.00019781,2]
[408249065,1773313845040,-150.0,0.00019781,2]
[408249066,1773313845050,-436.0,0.00019781,2]
[408249067,1773313845059,-500.0,0.00019781,2]
[408249068,1773313845068,-151.17604602,0.00019781,2]
[408249069,1773313845078,-150.5231356,0.00019781,2]
[408249070,1773313845087,-150.36304931,0.00019781,2]
[408249071,1773313845097,-506.37193097,0.00019781,2]
[408249072,1773313845107,-150.0,0.00019781,2]
[408249073,1773313845117,-206.99792004,0.00019781,2]
[408249074,1773313845126,-803.73131,0.000198,2]
[408249075,1773313845135,-803.73131,0.000198,2]
[408249076,1773313845146,-1143.00513,0.000198,2]
[408249077,1773313845156,-1143.00513,0.000198,2]
[408249078,1773313845165,-803.73131,0.000198,2]
[408249079,1773313845174,-803.73131,0.000198,2]
[408249080,1773313845183,-151.0,0.000198,2]
[408249081,1773313845193,-172.678265,0.000198,2]
[408249082,1773313845202,-172.678265,0.000198,2]
[408249083,1773313845212,-172.678265,0.000198,2]
[408249084,1773313845221,-172.678265,0.000198,2]
[408249085,1773313845231,-150.0,0.00019816,2]
[408249086,1773313845241,-620.0,0.00019816,2]
[408249087,1773313845250,-1343.0,0.00019816,2]
[408249088,1773313845260,-150.0,0.00019836,2]
[408249089,1773313845270,-200.0,0.00019836,2]
[408249090,1773313845279,-150.0,0.00019836,2]
[408249091,1773313845289,-150.0,0.00019836,2]
[408249092,1773313845298,-500.0,0.00019836,2]
[408249093,1773313845307,-150.0,0.00019836,2]
[408249094,1773313845316,-150.0,0.00019836,2]
[408249095,1773313845326,-200.0,0.00019836,2]
[408249096,1773313845335,-500.0,0.00019836,2]
[408249097,1773313845345,-500.0,0.00019836,2]
[408249098,1773313845355,-500.0,0.00019836,2]
[408249099,1773313845369,-200.0,0.00019836,2]
[408249100,1773313845381,-200.0,0.00019836,2]
[408249101,1773313845391,-151.97192574,0.00019836,2]
[408249102,1773313845401,-150.0,0.00019836,2]
[408249103,1773313845411,-436.0,0.00019836,2]
[408249104,1773313845422,-300.0,0.00019836,2]
[408249105,1773313845432,-150.0,0.00019836,2]
[408249106,1773313845442,-1665.2587253,0.00019874,2]
[408249107,1773313845451,-254.83861542,0.0001989,2]
[408249108,1773313845461,-150.0,0.0001989,2]
[408249109,1773313845470,-150.0,0.0001989,2]
[408249110,1773313845481,-150.0,0.0001989,2]
[408249111,1773313845491,-436.0,0.0001989,2]
[408249112,1773313845501,-200.0,0.0001989,2]
[408249113,1773313845511,-577.0,0.00019894,2]
[408249114,1773313845521,-985.0,0.00019898,2]
[408249115,1773313845531,-363.06856998,0.000199,2]
[408249116,1773313845541,-151.0,0.000199,2]
[408249117,1773313845553,-995.0,0.000199,2]
[408249118,1773313845564,-311.0,0.000199,2]
[408249119,1773313845579,-203.0,0.000199,2]
[408249120,1773313845590,-189.744161,0.000199,2]
[408249121,1773313845600,-189.744161,0.000199,2]
[408249122,1773313845610,-189.744161,0.000199,2]
[408249123,1773313845620,-151.0,0.000199,2]
[408249124,1773313845630,-189.744161,0.000199,2]
[408249125,1773313845641,-151.0,0.000199,2]
[408249126,1773313845650,-151.0,0.000199,2]
[408249127,1773313845660,-151.0,0.000199,2]
[408249128,1773313845670,-151.0,0.000199,2]
[408249129,1773313845679,-151.0,0.000199,2]
[408249130,1773313845689,-444.0737561,0.000199,2]
[408249131,1773313845700,-168.0,0.00019907,2]
[408249132,1773313845711,-150.0,0.00019945,2]
[408249134,1773313845721,-150.0,0.00019945,2]
[408249136,1773313845731,-150.0,0.00019945,2]
[408249137,1773313845741,-436.0,0.00019945,2]
[408249139,1773313845751,-1299.86024059,0.00019955,5]
[408249142,1773313845761,-153.55279631,0.0001997,2]
[408249143,1773313845772,-700.0,0.0001997,2]
[408249144,1773313845783,-700.0,0.0001997,2]
[408249145,1773313845793,-700.0,0.0001997,2]
[408249146,1773313845803,-1356.29105231,0.0001997,2]
[408249147,1773313845814,-153.20077314,0.0001999,2]
[408249148,1773313845824,-500.0,0.00019999,2]
[408249149,1773313845834,-200.0,0.0002,2]
[408249150,1773313845844,-249.0,0.0002,2]
[408249151,1773313845854,-154.44217936,0.0002,2]
[408249152,1773313845864,-436.0,0.0002,2]
[408249153,1773313845874,-165.1294434,0.0002,2]
[408249154,1773313845884,-58678.52513483,0.0002,2]
[408249155,1773313845894,-200.0,0.0002,2]
[408249156,1773313845904,-200.0,0.0002,2]
[408249157,1773313845914,-69468.57647878,0.0002,2]
[408249159,1773313846313,-458.17,0.000179,2]
[408249160,1773313846342,-12766.91707957,0.00017832,2]
[408249161,1773313846352,-99.07804999,0.000179,2]
[408249162,1773313846361,-26887.87935265,0.0002,2]
[408249163,1773313846636,-12433.67,0.00016912,2]
[408249164,1773313846646,-10597.51870592,0.00018866,2]
[408249165,1773313846658,-151.0,0.00019113,2]
[408249166,1773313846668,-58343.29158753,0.0002,2]
[408249167,1773313846693,-87.79460314,0.0002,2]
[408249168,1773313846712,-95166.08652691,0.0002,2]
[408249169,1773313935148,500.0,0.000187,30]
[408249170,1773313935211,500.0,0.000187,30]
[408249171,1773313935639,500.0,0.00015,30]
[408249172,1773313935797,500.0,0.000187,30]
[408249173,1773313936278,500.0,0.00015,30]
[408249174,1773313940629,500.0,0.000187,30]
[408249175,1773313940657,670.06724098,0.000187,30]
[408249176,1773313941121,999.99,0.00015,30]
[408249177,1773313942665,500.0,0.000187,30]
[408249178,1773313942694,817.92491189,0.000187,30]
[408249179,1773313944280,500.0,0.000187,30]
[408249181,1773314034567,-789.0,0.00015368,2]
[408249182,1773314034593,-335.47090207,0.000174,2]
[408249183,1773314034614,-697.85461024,0.000174,2]
[408249184,1773314034635,-636.87981285,0.000174,2]
[408249185,1773314034656,-710.80647983,0.000174,2]
[408249186,1773314034675,-500.0,0.00017539,2]
[408249187,1773314034694,-550.0,0.00017539,2]
[408249188,1773314034713,-300.0,0.00017539,2]
[408249189,1773314034732,-1299.86024059,0.00017539,5]
[408249190,1773314034751,-300.0,0.00017539,2]
[408249191,1773314034772,-248.20883229,0.00017539,2]
[408249192,1773314034793,-500.0,0.00017539,2]
[408249193,1773314034812,-375.58390631,0.00017539,2]
[408249194,1773314034831,-500.0,0.00017539,2]
[408249195,1773314034850,-530.86085669,0.00017539,2]
[408249196,1773314034871,-500.0,0.00017539,2]
[408249197,1773314034891,-500.0,0.00017539,2]
[408249198,1773314034915,-500.0,0.00017539,2]
[408249199,1773314034934,-174.04429877,0.00017539,2]
[408249200,1773314034957,-500.0,0.00017539,2]
[408249201,1773314034979,-500.0,0.00017539,2]
[408249202,1773314035002,-500.0,0.00017539,2]
[408249203,1773314035024,-500.0,0.00017539,2]
[408249204,1773314035045,-500.0,0.00017539,2]
[408249205,1773314035067,-500.0,0.00017539,2]
[408249206,1773314035089,-500.0,0.00017539,2]
[408249207,1773314035111,-500.0,0.00017539,2]
[408249208,1773314035133,-500.0,0.00017539,2]
[408249209,1773314035155,-500.0,0.00017539,2]
[408249210,1773314035178,-500.0,0.00017539,2]
[408249211,1773314035201,-500.0,0.00017539,2]
[408249212,1773314035222,-500.0,0.00017539,2]
[408249213,1773314035245,-500.0,0.00017539,2]
[408249214,1773314035266,-500.0,0.00017539,2]
[408249215,1773314035288,-500.0,0.00017539,2]
[408249216,1773314035309,-500.0,0.00017539,2]
[408249217,1773314035330,-500.0,0.00017539,2]
[408249218,1773314035351,-500.0,0.00017539,2]
[408249219,1773314035373,-500.0,0.00017539,2]
[408249220,1773314035394,-500.0,0.00017539,2]